{"text_format":"2","workbook":"xlsx","n_sheets":1,"sheets":["LOT 2 - Tehnika"],"not_rendered":{"charts":0,"images":1,"macros":0,"external_links":0,"defined_names":0,"comments":0,"pivot_tables":0},"unopened":[],"bounds":{"document_bytes":16777216,"sheet_cells":100000,"run_cost":"one","rows_first":2000,"rows_last":500,"rows_between":2000,"halvings":0,"cell_chars":16384,"cell_head_chars":4096},"cells_cut":0,"cells_raw":0,"read":"whole","date_system":"1900"}

{"sheet":"LOT 2 - Tehnika","index":0,"n_rows":15,"n_cols":9,"rows_kept":15,"cut":false,"hidden":false,"merged":[[4,0,4,8],[14,7,14,8],[14,5,14,6],[15,5,15,6],[15,7,15,8],[14,0,15,4]]}
[]
[]
[]
[]
["LOT 2 - Technical equipment / Tehnicka oprema"]
["R.br.","Naziv i opis stavke","Lokacija isporuke","Jedinica mjere","Količina","Jedinična cijena bez PDV-a","Ukupna cijena bez PDV-a","Jedinična cijena sa PDV-om","Ukupna cijena sa PDV-a"]
[1,"Tablet \n8\" (800*1280) IPS, Android 10 (Go edition), up to 1.3GHz Quad Core Spreadtrum SC7731e CPU, 1GB + 32GB, BT 4.2 Low energy, WiFi 802.11 b/g/n, 0.3MP front cam + 2.0MP rear cam, Micro USB, microSD card slot, Single SIM, have call function, 5000mAh bat, Slate Grey","Gracanica","kom",15,null,{"$f":"E7*F7","v":0},{"$f":"F7*1.17","v":0},{"$f":"E7*H7","v":0}]
[2,"Digitalna kamera\n20MP, optički zoom 5x","Gracanica","kom",1,null,{"$f":"E8*F8","v":0},{"$f":"F8*1.17","v":0},{"$f":"E8*H8","v":0}]
[3,"Projektor\nVrsta projektora | Poslovni\nOsvjetljenje | 3800 lumena\nTehnologija | DLP\nRezolucija | SVGA, 800 x 600\nPriključci | 1 x HDMI 1.4a 3D support, 1 x VGA (YPbPr/RGB), 1 x Composite video, 1 x Audio 3.5mm, 1 x Audio 3.5mm, 1 x USB-A power 1A\nKontrast | 22,000:1\nFormat projekcije | 4:3\nGlasnost | 29dB\nTrajanje lampe | 6000 (Bright), 12000 (Dynamic), 10000 (Eco), 15000 (Eco+)\nZvučnici | 10W\nBežično povezivanje | Opciono\nBoja kućišta | Crna\nDimenzije (Š x D x V) | 316 x 244 x 108 mm\nTežina | 3 kg\nGarancija (mj) | 24 mjeseca","Laktasi","kom",1,null,0,0,0]
[4,"Zidno platno\nTip projekcijskog platna: Ručno\nŠirina projekcijskog platna < 240 cm\nDimenzije projekcijskog platna: 180x180 cm","Laktasi","kom",1,null,0,0,0]
[5,"Stropni nosac za projektor, nosivost do 8kg, max. raspon rupa 260x260mm, podešavanje visine, raspon od 38cm do 62cm. ","Laktasi","kom",1,null,0,0,0]
[6,"Projektor\nVrsta projektora | Poslovni\nOsvjetljenje | 3800 lumena\nTehnologija | DLP\nRezolucija | SVGA, 800 x 600\nPriključci | 1 x HDMI 1.4a 3D support, 1 x VGA (YPbPr/RGB), 1 x Composite video, 1 x Audio 3.5mm, 1 x Audio 3.5mm, 1 x USB-A power 1A\nKontrast | 22,000:1\nFormat projekcije | 4:3\nGlasnost | 29dB\nTrajanje lampe | 6000 (Bright), 12000 (Dynamic), 10000 (Eco), 15000 (Eco+)\nZvučnici | 10W\nBežično povezivanje | Opciono\nBoja kućišta | Crna\nDimenzije (Š x D x V) | 316 x 244 x 108 mm\nTežina | 3 kg\nGarancija (mj) | 24 mjeseca","Laktasi","kom",1,null,0,0,0]
[7,"Računar + monitor                                                        Intel Core i3-8100 3.6 GHz, Intel H370, 8 GB DDR4 RAM, Intel UHD Graphics 630,HDD 500GB SATA, DVD RW, 10/100/1000 Mbit, Microtower, 180 W,\nHP USB Optički miš, HP USB Tastatura, Windows 10 Pro, 20.7\" V214a display","Tešanj","kom",1,null,0,0,0]
[8,"Multifunkcionalni printer/kopir/skener Štampanje/Kopiranje/Skeniranje/Fax: da/da/da/da\nBrzina štampanja/Brzina kopiranja: 30 spm/30spm\nObostrano štampanje: automatsko\nRezolucija štampanja: 1200 x 1200 dpi\nKopiranje: 600 x 600 dpi\nSkeniranje: 1200 x 1200 dpi\nStandardni kapacitet papira: 250 listova /ADF 50\nIzlaz papira licem gore/dole: 1/120listova\nIzlazni priključci: Hi- Speed USB 2,0, 10Base-T/100Base-TX\nStandardni toner: TN-2411 za 1200 str.\nGarancija 36 mjeseci važi uz online registraciju na portalu","Tešanj",null,1,null,0,0,0]
["UKUPNO",{"$nulls":4},"Ukupna vrijednost bez PDV-a",null,"Ukupna vrijednost sa PDV-om"]